fUST/lending_fUST_20250902
["ID","MTS","AMOUNT","RATE_DAILY","PERIOD"]
[383016852,1756809040172,-480.0,0.00013972,2]
[383016854,1756809040183,-480.0,0.00013972,2]
[383016871,1756809040192,-480.0,0.00013972,2]
[383016874,1756809040355,-480.0,0.00013972,2]
[383016876,1756809040364,-480.0,0.00013972,2]
[383016878,1756809040375,-1269.66,0.00013972,2]
[383016880,1756809040384,-537.17,0.00013972,2]
[383016882,1756809040393,-480.0,0.00013972,2]
[383016884,1756809040403,-500.77084921,0.00013973,2]
[383016886,1756809040413,-501.36365364,0.00013973,2]
[383016888,1756809040422,-500.0,0.00013973,2]
[383016890,1756809040431,-213.69404811,0.00013973,2]
[383016892,1756809040440,-500.0,0.00013973,2]
[383016894,1756809040450,-500.0,0.00013973,2]
[383016896,1756809040459,-501.13750792,0.00013973,2]
[383016898,1756809040468,-501.46412833,0.00013973,2]
[383016900,1756809040477,-500.0,0.00013973,2]
[383016902,1756809040487,-373.2254964,0.00013973,2]
[383016904,1756809040496,-500.0,0.00013973,2]
[383016906,1756809040505,-500.0,0.00013973,2]
[383016908,1756809040515,-609.18385506,0.00013973,2]
[383016910,1756809040524,-500.0,0.00013973,2]
[383016912,1756809040533,-500.0,0.00013973,2]
[383016914,1756809040543,-151.0,0.00013973,2]
[383016916,1756809040552,-152.352164,0.00013973,2]
[383016918,1756809040561,-255.36986612,0.00013984,2]
[383016920,1756809040571,-250.0,0.00014033,2]
[383016922,1756809040580,-3000.0,0.0001404,2]
[383016924,1756809040590,-151.0,0.0001405,2]
[383016926,1756809040599,-151.0,0.0001405,2]
[383016928,1756809040608,-151.0,0.00014085,2]
[383016930,1756809040617,-151.0,0.00014085,2]
[383016932,1756809040627,-151.0,0.00014085,2]
[383016934,1756809040636,-151.0,0.00014085,2]
[383016936,1756809040646,-294.511964,0.00014085,2]
[383016938,1756809040655,-151.0,0.00014085,2]
[383016940,1756809040664,-11369.04596444,0.00014085,2]
[383016942,1756809040674,-160.0,0.00014085,2]
[383016944,1756809040683,-530.22964562,0.00014085,2]
[383016946,1756809040693,-160.0,0.00014085,2]
[383016948,1756809040702,-417.15472785,0.00014085,2]
[383016950,1756809040711,-217.47380718,0.00014085,2]
[383016952,1756809040720,-160.0,0.00014085,2]
[383016954,1756809040729,-232.87008258,0.00014085,2]
[383016956,1756809040739,-160.0,0.00014085,2]
[383016958,1756809040748,-316.3878574,0.00014085,2]
[383016960,1756809040757,-160.0,0.00014085,2]
[383016962,1756809040766,-160.0,0.00014085,2]
[383016964,1756809040775,-255.36986612,0.00014096,2]
[383016966,1756809040785,-16328.29664422,0.00014118,2]
[383016968,1756809040794,-151.0,0.00014146,2]
[383016970,1756809040803,-151.0,0.00014146,2]
[383016972,1756809040812,-151.0,0.00014146,2]
[383016974,1756809040822,-151.0,0.00014146,2]
[383016976,1756809040831,-255.36986612,0.00014208,2]
[383016978,1756809040840,-200.0,0.00014245,2]
[383016980,1756809040849,-480.0,0.00014246,2]
[383016982,1756809040858,-480.0,0.00014246,2]
[383016984,1756809040868,-151.0,0.00014246,2]
[383016986,1756809040879,-153.073121,0.00014246,2]
[383016988,1756809040889,-9.96508946,0.00014246,2]
[383017001,1756809041009,-470.03491054,0.00014246,2]
[383017003,1756809041019,-480.0,0.00014246,2]
[383017005,1756809041028,-257.3333273,0.00014246,2]
[383017007,1756809041037,-480.0,0.00014246,2]
[383017009,1756809041046,-185.1,0.00014246,2]
[383017011,1756809041055,-550.22,0.00014246,2]
[383017013,1756809041065,-480.0,0.00014246,2]
[383017015,1756809041074,-480.0,0.00014246,2]
[383017017,1756809041084,-480.0,0.00014246,2]
[383017019,1756809041094,-480.0,0.00014246,2]
[383017022,1756809041104,-480.0,0.00014246,2]
[383017024,1756809041113,-480.0,0.00014246,2]
[383017026,1756809041122,-480.0,0.00014246,2]
[383017028,1756809041132,-480.0,0.00014246,2]
[383017029,1756809041141,-152.7,0.00014246,2]
[383017032,1756809041151,-155.78,0.00014246,2]
[383017034,1756809041160,-480.0,0.00014246,2]
[383017036,1756809041170,-480.0,0.00014246,2]
[383017038,1756809041179,-203.56,0.00014246,2]
[383017040,1756809041188,-480.0,0.00014246,2]
[383017042,1756809041197,-480.0,0.00014246,2]
[383017044,1756809041206,-480.0,0.00014246,2]
[383017046,1756809041216,-480.0,0.00014246,2]
[383017048,1756809041225,-480.0,0.00014246,2]
[383017050,1756809041235,-480.0,0.00014246,2]
[383017052,1756809041244,-480.0,0.00014246,2]
[383017054,1756809041254,-585.52,0.00014246,2]
[383017055,1756809041264,-480.0,0.00014246,2]
[383017057,1756809041274,-480.0,0.00014246,2]
[383017059,1756809041283,-627.74,0.00014246,2]
[383017061,1756809041292,-587.08,0.00014246,2]
[383017063,1756809041301,-480.0,0.00014246,2]
[383017065,1756809041311,-480.0,0.00014246,2]
[383017067,1756809041320,-480.0,0.00014246,2]
[383017069,1756809041329,-480.0,0.00014246,2]
[383017071,1756809041339,-480.0,0.00014246,2]
[383017073,1756809041348,-157.38,0.00014246,2]
[383017075,1756809041357,-208.90499941,0.00014246,2]
[383017078,1756809041369,-271.09500059,0.00014246,2]
[383017080,1756809041378,-480.0,0.00014246,2]
[383017082,1756809041388,-480.0,0.00014246,2]
[383017084,1756809041397,-1834.29,0.00014246,2]
[383017086,1756809041406,-480.0,0.00014246,2]
[383017088,1756809041415,-480.0,0.00014246,2]
[383017089,1756809041424,-480.0,0.00014246,2]
[383017091,1756809041434,-480.0,0.00014246,2]
[383017093,1756809041443,-480.0,0.00014246,2]
[383017095,1756809041452,-480.0,0.00014246,2]
[383017097,1756809041461,-480.0,0.00014246,2]
[383017099,1756809041471,-480.0,0.00014246,2]
[383017101,1756809041481,-32.09490942,0.00014246,2]
[383017194,1756809042588,-387.28509058,0.00014246,2]
[383017197,1756809042601,-480.0,0.00014246,2]
[383017199,1756809042610,-480.0,0.00014246,2]
[383017201,1756809042619,-480.0,0.00014246,2]
[383017203,1756809042629,-480.0,0.00014246,2]
[383017205,1756809042639,-532.99,0.00014246,2]
[383017207,1756809042648,-480.0,0.00014246,2]
[383017209,1756809042658,-480.0,0.00014246,2]
[383017211,1756809042668,-1528.15556843,0.00014246,2]
[383017235,1756809042888,-139.19443157,0.00014246,2]
[383017237,1756809042898,-480.0,0.00014246,2]
[383017239,1756809042909,-480.0,0.00014246,2]
[383017241,1756809042919,-480.0,0.00014246,2]
[383017243,1756809042928,-480.0,0.00014246,2]
[383017246,1756809042941,-480.0,0.00014246,2]
[383017249,1756809042951,-959.65,0.00014246,2]
[383017252,1756809042960,-480.0,0.00014246,2]
[383017255,1756809042969,-981.36,0.00014246,2]
[383017257,1756809042980,-151.0,0.00014246,2]
[383017259,1756809042989,-151.0,0.00014246,2]
[383017261,1756809042999,-332.29852063,0.00014246,2]
[383017263,1756809043010,-480.0,0.00014246,2]
[383017266,1756809043020,-480.0,0.00014246,2]
[383017268,1756809043031,-480.0,0.00014246,2]
[383017270,1756809043041,-957.34,0.00014246,2]
[383017272,1756809043050,-406.92,0.00014246,2]
[383017274,1756809043059,-495.31826821,0.00014246,2]
[383017276,1756809043069,-480.0,0.00014246,2]
[383017278,1756809043078,-480.0,0.00014246,2]
[383017279,1756809043087,-480.0,0.00014246,2]
[383017282,1756809043097,-480.0,0.00014246,2]
[383017284,1756809043107,-480.0,0.00014246,2]
[383017286,1756809043119,-480.0,0.00014246,2]
[383017288,1756809043128,-480.0,0.00014246,2]
[383017290,1756809043137,-480.0,0.00014246,2]
[383017292,1756809043147,-155.579698,0.00014246,2]
[383017294,1756809043161,-685.47,0.00014246,2]
[383017296,1756809043170,-480.0,0.00014246,2]
[383017298,1756809043180,-480.0,0.00014246,2]
[383017300,1756809043189,-480.0,0.00014246,2]
[383017302,1756809043199,-480.0,0.00014246,2]
[383017304,1756809043208,-885.72,0.00014246,2]
[383017306,1756809043217,-480.0,0.00014246,2]
[383017308,1756809043227,-151.0,0.00014246,2]
[383017310,1756809043236,-480.0,0.00014246,2]
[383017312,1756809043246,-480.0,0.00014246,2]
[383017314,1756809043258,-536.77,0.00014246,2]
[383017316,1756809043267,-480.0,0.00014246,2]
[383017318,1756809043276,-480.0,0.00014246,2]
[383017320,1756809043286,-480.0,0.00014246,2]
[383017323,1756809043305,-470.48,0.00014246,2]
[383017325,1756809043315,-480.0,0.00014246,2]
[383017327,1756809043325,-519.73,0.00014246,2]
[383017329,1756809043335,-480.0,0.00014246,2]
[383017331,1756809043345,-480.0,0.00014246,2]
[383017333,1756809043354,-480.0,0.00014246,2]
[383017335,1756809043364,-480.0,0.00014246,2]
[383017337,1756809043373,-241.25997273,0.00014246,2]
[383017339,1756809043383,-99.2817593,0.00014246,2]
[383017364,1756809043609,-251.62779434,0.00013698,2]
[383017572,1756809046518,-228.37220566,0.00013698,2]
[383017573,1756809046528,-482.37843221,0.00013698,2]
[383017574,1756809046537,-481.242559,0.00013698,2]
[383017575,1756809046546,-480.0,0.00013698,2]
[383017576,1756809046555,-390.0282407,0.00014246,2]
[383017577,1756809046563,-480.0,0.00014246,2]
[383017578,1756809046572,-179.175274,0.00014246,2]
[383017579,1756809046581,-480.0,0.00014246,2]
[383017580,1756809046591,-480.0,0.00014246,2]
[383017581,1756809046600,-480.0,0.00014246,2]
[383017582,1756809046610,-480.0,0.00014246,2]
[383017583,1756809046619,-1269.66,0.00014246,2]
[383017584,1756809046629,-537.17,0.00014246,2]
[383017585,1756809046639,-480.0,0.00014246,2]
[383017586,1756809046649,-846.21894513,0.0001425,2]
[383017587,1756809046659,-577.11081207,0.00014318,2]
[383017588,1756809046669,-1588.4247128,0.0001432,2]
[383017589,1756809046678,-255.36986612,0.0001432,2]
[383017590,1756809046687,-7181.23651931,0.0001442,2]
[383017591,1756809046699,-552.47360005,0.0001442,2]
[383017592,1756809046860,-481.99622945,0.00013698,2]
[383017593,1756809046869,-482.62981617,0.00013698,2]
[383017594,1756809046879,-55.09493458,0.0001442,2]
[383017595,1756809046891,-1889.67924,0.0001442,2]
[383017596,1756809046903,-410.425,0.0001442,2]
[383017597,1756809046913,-1103.9980002,0.0001442,2]
[383017610,1756809051477,480.0,0.00013561,2]
[383017611,1756809071539,163.7872936,0.0001356,2]
[383017612,1756809079814,284.72367423,0.0001356,2]
[383017613,1756809110788,154.866225,0.00025,30]
[383017614,1756809113471,159.322344,0.00025,30]
[383017615,1756809113940,159.322344,0.00025,30]
[383017616,1756809148121,210.87,0.00012329,2]
[383017618,1756809158500,175.73,0.00012329,2]
[383017619,1756809168930,878.67,0.00012329,2]
[383017620,1756809241367,900.0,0.00025,30]
[383017624,1756809521503,5000.0,0.0001444,4]
[383017625,1756809530711,5000.0,0.0001444,4]
[383017626,1756809540176,5000.0,0.0001444,4]
[383017627,1756809556671,3527.81815688,0.0001444,4]
[383017629,1756809716227,159.322344,0.00025,30]
[383017630,1756810032131,-1200.0,0.00013687,2]
[383017631,1756810032155,-300.0,0.00013688,2]
[383017632,1756810032187,-300.0,0.00013689,2]
[383017633,1756810032208,-300.0,0.00013689,2]
[383017634,1756810032230,-153.93360165,0.00013689,2]
[383017635,1756810036110,-146.06639835,0.00013689,2]
[383017636,1756810036130,-300.0,0.00013689,2]
[383017637,1756810036150,-1200.0,0.00013689,2]
[383017638,1756810036170,-1000.0,0.0001369,2]
[383017639,1756810036190,-1000.0,0.0001369,2]
[383017640,1756810036209,-1000.0,0.0001369,2]
[383017641,1756810036229,-271.44144963,0.0001369,2]
[383017642,1756810036249,-2618.2481025,0.0001369,2]
[383017643,1756810036270,-585.69592657,0.00013697,2]
[383017644,1756810036290,-279.96356098,0.00013697,2]
[383017645,1756810036312,-173.80936643,0.00013697,2]
[383017646,1756810036334,-203.92648223,0.00013697,2]
[383017647,1756810036360,-225.0,0.00013697,2]
[383017648,1756810036381,-533.10867048,0.00013697,2]
[383017649,1756810036403,-452.53237505,0.00013697,2]
[383017650,1756810036441,-500.0,0.00013697,2]
[383017651,1756810036464,-328.84796932,0.00013697,2]
[383017679,1756810232198,-2799.95695695,0.00013598,2]
[383017680,1756810232207,-1000.04304305,0.00013598,2]
[383017681,1756810232252,-131.49600875,0.00013598,2]
[383017682,1756810232261,-300.0,0.00013696,2]
[383017683,1756810232270,-171.15203068,0.00013697,2]
[383017684,1756810232280,-500.0,0.00013697,2]
[383017685,1756810232288,-500.0,0.00013697,2]
[383017686,1756810232298,-510.85517975,0.00013697,2]
[383017687,1756810232307,-480.0,0.00013698,2]
[383017688,1756810232316,-333.04955611,0.00013698,2]
[383017689,1756810232325,-481.959253,0.00013698,2]
[383017690,1756810232334,-480.2140986,0.00013698,2]
[383017691,1756810232343,-482.15790531,0.00013698,2]
[383017692,1756810232353,-480.0,0.00013698,2]
[383017693,1756810232362,-481.11402421,0.00013698,2]
[383017694,1756810232371,-480.0,0.00013698,2]
[383017695,1756810232380,-482.87999591,0.00013698,2]
[383017696,1756810232389,-480.0,0.00013698,2]
[383017697,1756810232398,-501.47277062,0.00013698,2]
[383017698,1756810232409,-481.27953008,0.00013698,2]
[383017699,1756810232421,-429.79821145,0.00013698,2]
[383017700,1756810232431,-481.3675272,0.00013698,2]
[383017701,1756810232440,-480.0,0.00013698,2]
[383017702,1756810232450,-480.0,0.00013698,2]
[383017703,1756810232460,-480.0,0.00013698,2]
[383017704,1756810232469,-480.0,0.00013698,2]
[383017705,1756810232478,-480.0,0.00013698,2]
[383017706,1756810232489,-480.0,0.00013698,2]
[383017707,1756810232498,-194.44,0.00013698,2]
[383017708,1756810232508,-480.0,0.00013698,2]
[383017709,1756810232517,-480.0,0.00013698,2]
[383017710,1756810232529,-481.26080592,0.00013698,2]
[383017711,1756810232539,-595.86800768,0.00013698,2]
[383017712,1756810232548,-480.0,0.00013698,2]
[383017713,1756810232558,-481.15596378,0.00013698,2]
[383017714,1756810232567,-480.0,0.00013698,2]
[383017715,1756810232577,-480.0,0.00013698,2]
[383017716,1756810232586,-157.53269061,0.00013698,2]
[383017717,1756810232596,-480.0,0.00013698,2]
[383017718,1756810232606,-480.0,0.00013698,2]
[383017719,1756810232615,-480.0,0.00013698,2]
[383017720,1756810232625,-480.0,0.00013698,2]
[383017721,1756810232634,-480.0,0.00013698,2]
[383017722,1756810232645,-480.0,0.00013698,2]
[383017723,1756810232656,-465.79660852,0.00013698,2]
[383017724,1756810232665,-480.0,0.00013698,2]
[383017725,1756810232676,-500.60544887,0.00013698,2]
[383017726,1756810232685,-480.0,0.00013698,2]
[383017727,1756810232694,-483.57359368,0.00013698,2]
[383017728,1756810232704,-480.0,0.00013698,2]
[383017729,1756810232714,-169.42,0.00013698,2]
[383017730,1756810232724,-481.64190064,0.00013698,2]
[383017731,1756810232733,-480.0,0.00013698,2]
[383017732,1756810232742,-480.0,0.00013698,2]
[383017733,1756810232751,-480.0,0.00013698,2]
[383017734,1756810232760,-590.90534694,0.00013698,2]
[383017735,1756810232771,-480.0,0.00013698,2]
[383017736,1756810232780,-481.40713153,0.00013698,2]
[383017737,1756810232790,-480.0,0.00013698,2]
[383017738,1756810232799,-481.6786968,0.00013698,2]
[383017739,1756810232808,-480.0,0.00013698,2]
[383017740,1756810232817,-480.0,0.00013698,2]
[383017741,1756810232827,-480.0,0.00013698,2]
[383017742,1756810232836,-482.59451452,0.00013698,2]
[383017743,1756810232845,-546.52,0.00013698,2]
[383017744,1756810232854,-480.0,0.00013698,2]
[383017745,1756810232863,-445.44205995,0.00013698,2]
[383017746,1756810232871,-480.0,0.00013698,2]
[383017747,1756810232880,-480.0,0.00013698,2]
[383017748,1756810232889,-328.59548206,0.00013698,2]
[383017749,1756810232898,-549.71,0.00013698,2]
[383017750,1756810232907,-502.14924103,0.00013698,2]
[383017751,1756810232915,-480.0,0.00013698,2]
[383017752,1756810232924,-480.0,0.00013698,2]
[383017753,1756810232933,-480.0,0.00013698,2]
[383017754,1756810232942,-629.0,0.00013698,2]
[383017755,1756810232951,-480.0,0.00013698,2]
[383017756,1756810232959,-480.0,0.00013698,2]
[383017757,1756810232969,-480.0,0.00013698,2]
[383017758,1756810232978,-353.44,0.00013698,2]
[383017759,1756810232987,-480.0,0.00013698,2]
[383017760,1756810232996,-480.0,0.00013698,2]
[383017761,1756810233006,-480.0,0.00013698,2]
[383017762,1756810233015,-483.08538617,0.00013698,2]
[383017763,1756810233025,-568.87802622,0.00013698,2]
[383017764,1756810233034,-480.45188689,0.00013698,2]
[383017765,1756810233044,-482.76822224,0.00013698,2]
[383017766,1756810233054,-482.10584631,0.00013698,2]
[383017767,1756810233063,-482.44908062,0.00013698,2]
[383017768,1756810233073,-480.0,0.00013698,2]
[383017769,1756810233082,-480.0,0.00013698,2]
[383017770,1756810233091,-480.72909907,0.00013698,2]
[383017771,1756810233101,-482.8331528,0.00013698,2]
[383017772,1756810233110,-253.15919283,0.00013698,2]
[383017773,1756810233119,-480.0,0.00013698,2]
[383017774,1756810233129,-480.0,0.00013698,2]
[383017775,1756810233138,-480.0,0.00013698,2]
[383017776,1756810233147,-480.0,0.00013698,2]
[383017777,1756810233157,-480.0,0.00013698,2]
[383017778,1756810233176,-480.0,0.00013698,2]
[383017779,1756810233187,-480.0,0.00013698,2]
[383017780,1756810233197,-481.92891527,0.00013698,2]
[383017781,1756810233207,-480.0,0.00013698,2]
[383017782,1756810233216,-483.09885959,0.00013698,2]
[383017783,1756810233227,-481.57566575,0.00013698,2]
[383017784,1756810233236,-480.0,0.00013698,2]
[383017785,1756810233246,-484.15030718,0.00013698,2]
[383017786,1756810233256,-173.76667663,0.00013698,2]
[383017787,1756810233265,-418.54241263,0.00013698,2]
[383017788,1756810233275,-565.60466085,0.00013698,2]
[383017789,1756810233285,-480.0,0.00013698,2]
[383017790,1756810233295,-482.26881831,0.00013698,2]
[383017791,1756810233305,-480.0,0.00013698,2]
[383017792,1756810233315,-480.0,0.00013698,2]
[383017793,1756810233324,-484.97670703,0.00013698,2]
[383017794,1756810233335,-481.83532906,0.00013698,2]
[383017795,1756810233345,-480.0,0.00013698,2]
[383017796,1756810233354,-482.17436888,0.00013698,2]
[383017797,1756810233363,-517.14,0.00013698,2]
[383017798,1756810233373,-484.36522936,0.00013698,2]
[383017799,1756810233383,-480.0,0.00013698,2]
[383017800,1756810233393,-702.63,0.00013698,2]
[383017801,1756810233402,-483.68396112,0.00013698,2]
[383017802,1756810233415,-481.70470394,0.00013698,2]
[383017803,1756810233425,-480.0,0.00013698,2]
[383017804,1756810233435,-480.0,0.00013698,2]
[383017805,1756810233445,-482.28751336,0.00013698,2]
[383017806,1756810233457,-480.0,0.00013698,2]
[383017807,1756810233467,-480.0,0.00013698,2]
[383017808,1756810233477,-480.0,0.00013698,2]
[383017809,1756810233488,-484.28627086,0.00013698,2]
[383017810,1756810233498,-480.0,0.00013698,2]
[383017811,1756810233508,-428.88178104,0.00013698,2]
[383017812,1756810233518,-480.0,0.00013698,2]
[383017813,1756810233528,-483.10175735,0.00013698,2]
[383017814,1756810233538,-584.03907151,0.00013698,2]
[383017815,1756810233548,-481.28640561,0.00013698,2]
[383017816,1756810233559,-480.0,0.00013698,2]
[383017817,1756810233569,-485.86944993,0.00013698,2]
[383017818,1756810233580,-480.0,0.00013698,2]
[383017819,1756810233590,-482.06837881,0.00013698,2]
[383017820,1756810233600,-482.9397667,0.00013698,2]
[383017821,1756810233610,-480.0,0.00013698,2]
[383017822,1756810233620,-593.80466762,0.00013698,2]
[383017823,1756810233630,-480.0,0.00013698,2]
[383017824,1756810233640,-480.0,0.00013698,2]
[383017825,1756810233650,-1110.96,0.00013698,2]
[383017826,1756810233660,-480.0,0.00013698,2]
[383017827,1756810233671,-480.0,0.00013698,2]
[383017828,1756810233681,-481.55059596,0.00013698,2]
[383017829,1756810233691,-481.29565846,0.00013698,2]
[383017830,1756810233701,-1546.32,0.00013698,2]
[383017831,1756810233710,-480.0,0.00013698,2]
[383017832,1756810233720,-482.16185283,0.00013698,2]
[383017833,1756810233730,-480.0,0.00013698,2]
[383017834,1756810233741,-480.0,0.00013698,2]
[383017835,1756810233751,-480.0,0.00013698,2]
[383017836,1756810233761,-480.0,0.00013698,2]
[383017837,1756810233770,-480.0,0.00013698,2]
[383017838,1756810233781,-480.0,0.00013698,2]
[383017839,1756810233790,-480.0,0.00013698,2]
[383017840,1756810233800,-489.2875407,0.00013698,2]
[383017841,1756810233809,-480.0,0.00013698,2]
[383017842,1756810233820,-418.80347517,0.00013698,2]
[383017843,1756810233830,-481.06485864,0.00013698,2]
[383017844,1756810233839,-480.0,0.00013698,2]
[383017845,1756810233849,-480.0,0.00013698,2]
[383017846,1756810233859,-480.0,0.00013698,2]
[383017847,1756810233869,-585.45977576,0.00013698,2]
[383017848,1756810233878,-480.0,0.00013698,2]
[383017849,1756810233888,-558.74,0.00013698,2]
[383017850,1756810233898,-485.90240617,0.00013698,2]
[383017851,1756810233908,-480.0,0.00013698,2]
[383017852,1756810233917,-482.78022347,0.00013698,2]
[383017853,1756810233927,-480.0,0.00013698,2]
[383017854,1756810233937,-480.0,0.00013698,2]
[383017855,1756810233947,-480.0,0.00013698,2]
[383017856,1756810233957,-480.0,0.00013698,2]
[383017857,1756810233967,-168.52175145,0.00013698,2]
[383017858,1756810233977,-482.64121102,0.00013698,2]
[383017859,1756810233986,-526.05,0.00013698,2]
[383017860,1756810233995,-480.0,0.00013698,2]
[383017861,1756810234006,-480.0,0.00013698,2]
[383017862,1756810234016,-480.0,0.00013698,2]
[383017863,1756810234026,-480.0,0.00013698,2]
[383017864,1756810234036,-480.0,0.00013698,2]
[383017865,1756810234045,-480.0,0.00013698,2]
[383017866,1756810234055,-388.60714091,0.00013698,2]
[383017867,1756810234065,-460.89988639,0.00013698,2]
[383017868,1756810234075,-480.0,0.00013698,2]
[383017869,1756810234085,-1165.55,0.00013698,2]
[383017870,1756810234094,-480.0,0.00013698,2]
[383017871,1756810234104,-384.33,0.00013698,2]
[383017872,1756810234113,-480.0,0.00013698,2]
[383017873,1756810234122,-480.0,0.00013698,2]
[383017874,1756810234132,-482.12498066,0.00013698,2]
[383017875,1756810234142,-482.09941057,0.00013698,2]
[383017876,1756810234152,-482.43266537,0.00013698,2]
[383017877,1756810234162,-480.0,0.00013698,2]
[383017878,1756810234173,-480.0,0.00013698,2]
[383017879,1756810234183,-480.0,0.00013698,2]
[383017880,1756810234193,-480.0,0.00013698,2]
[383017881,1756810234203,-480.0,0.00013698,2]
[383017882,1756810234212,-480.0,0.00013698,2]
[383017883,1756810234222,-480.0,0.00013698,2]
[383017884,1756810234231,-480.0,0.00013698,2]
[383017885,1756810234241,-480.0,0.00013698,2]
[383017886,1756810234252,-480.0,0.00013698,2]
[383017887,1756810234261,-480.0,0.00013698,2]
[383017888,1756810234271,-480.0,0.00013698,2]
[383017889,1756810234281,-480.0,0.00013698,2]
[383017890,1756810234290,-480.0,0.00013698,2]
[383017891,1756810234300,-480.0,0.00013698,2]
[383017892,1756810234309,-480.0,0.00013698,2]
[383017893,1756810234320,-480.0,0.00013698,2]
[383017894,1756810234330,-480.0,0.00013698,2]
[383017895,1756810234339,-480.0,0.00013698,2]
[383017896,1756810234349,-480.0,0.00013698,2]
[383017897,1756810234359,-480.0,0.00013698,2]
[383017898,1756810234368,-480.0,0.00013698,2]
[383017899,1756810234378,-485.94536881,0.00013698,2]
[383017900,1756810234387,-480.0,0.00013698,2]
[383017901,1756810234397,-480.0,0.00013698,2]
[383017902,1756810234407,-480.0,0.00013698,2]
[383017903,1756810234420,-483.07921872,0.00013698,2]
[383017904,1756810234430,-480.0,0.00013698,2]
[383017905,1756810234439,-480.0,0.00013698,2]
[383017906,1756810234448,-480.0,0.00013698,2]
[383017907,1756810234458,-483.03845326,0.00013698,2]
[383017908,1756810234468,-480.0,0.00013698,2]
[383017909,1756810234478,-485.54390651,0.00013698,2]
[383017910,1756810234487,-480.0,0.00013698,2]
[383017911,1756810234499,-480.0,0.00013698,2]
[383017912,1756810234508,-593.97077495,0.00013698,2]
[383017913,1756810234518,-482.68845753,0.00013698,2]
[383017914,1756810234530,-480.0,0.00013698,2]
[383017915,1756810234539,-480.0,0.00013698,2]
[383017916,1756810234549,-480.0,0.00013698,2]
[383017917,1756810234559,-480.0,0.00013698,2]
[383017918,1756810234570,-878.43,0.00013698,2]
[383017919,1756810234579,-480.0,0.00013698,2]
[383017920,1756810234589,-480.0,0.00013698,2]
[383017921,1756810234601,-480.0,0.00013698,2]
[383017922,1756810234611,-480.0,0.00013698,2]
[383017923,1756810234621,-500.0,0.00013698,2]
[383017924,1756810234631,-500.0,0.00013698,2]
[383017925,1756810234642,-500.0,0.00013698,2]
[383017926,1756810234652,-500.0,0.00013698,2]
[383017927,1756810234662,-501.07702956,0.00013698,2]
[383017928,1756810234672,-480.0,0.00013698,2]
[383017929,1756810234682,-480.0,0.00013698,2]
[383017930,1756810234693,-480.0,0.00013698,2]
[383017931,1756810234702,-480.0,0.00013698,2]
[383017932,1756810234712,-480.0,0.00013698,2]
[383017933,1756810234722,-480.0,0.00013698,2]
[383017934,1756810234732,-504.18522678,0.00013698,2]
[383017935,1756810234742,-480.0,0.00013698,2]
[383017936,1756810234752,-480.0,0.00013698,2]
[383017937,1756810234762,-244.62568303,0.00013698,2]
[383017938,1756810234772,-665.99,0.00013698,2]
[383017939,1756810234782,-480.0,0.00013698,2]
[383017940,1756810234792,-480.0,0.00013698,2]
[383017941,1756810234802,-872.85,0.00013698,2]
[383017942,1756810234811,-480.0,0.00013698,2]
[383017943,1756810234821,-480.0,0.00013698,2]